[Event "*** Titled Tuesday Blitz"]
[Site "Chess.com"]
[Date "2020.05.26"]
[Round "7"]
[White "larisakalinina"]
[Black "Mexpaisano"]
[Result "0-1"]
[WhiteElo "1942"]
[BlackElo "2184"]
[TimeControl "180+1"]
[EndTime "11:20:32 PDT"]
[Termination "Mexpaisano won on time"]

1. e4 {[%clk 0:03:00.9]} 1... e5 {[%clk 0:02:59.5]} 2. Nc3 {[%clk 0:02:57.6]}
2... Nc6 {[%clk 0:02:59.3]} 3. g3 {[%clk 0:02:57.5]} 3... Nf6 {[%clk 0:02:59.1]}
4. Bg2 {[%clk 0:02:57.2]} 4... Bc5 {[%clk 0:02:57.9]} 5. Nge2 {[%clk 0:02:56.8]}
5... d6 {[%clk 0:02:57]} 6. O-O {[%clk 0:02:56.8]} 6... O-O {[%clk 0:02:55.8]}
7. d3 {[%clk 0:02:51.1]} 7... Nd4 {[%clk 0:02:55.6]} 8. h3 {[%clk 0:02:47.7]}
8... c6 {[%clk 0:02:55.5]} 9. Kh2 {[%clk 0:02:43.3]} 9... h6 {[%clk 0:02:54.2]}
10. f4 {[%clk 0:02:39.2]} 10... Qc7 {[%clk 0:02:44.4]} 11. f5 {[%clk 0:02:31.8]}
11... d5 {[%clk 0:02:44.3]} 12. g4 {[%clk 0:02:28.3]} 12... dxe4 {[%clk
0:02:37.6]} 13. Nxe4 {[%clk 0:01:50]} 13... Nxe4 {[%clk 0:02:20.1]} 14. Bxe4
{[%clk 0:01:49.2]} 14... f6 {[%clk 0:01:58.9]} 15. Ng3 {[%clk 0:01:47.9]} 15...
b6 {[%clk 0:01:56.3]} 16. Bd2 {[%clk 0:01:25.5]} 16... Bb7 {[%clk 0:01:56.1]}
17. b4 {[%clk 0:01:15.7]} 17... Be7 {[%clk 0:01:53]} 18. a4 {[%clk 0:01:12.6]}
18... c5 {[%clk 0:01:45.3]} 19. b5 {[%clk 0:01:02.4]} 19... c4 {[%clk
0:01:42.1]} 20. Bxb7 {[%clk 0:00:36.1]} 20... Qxb7 {[%clk 0:01:43]} 21. dxc4
{[%clk 0:00:35.2]} 21... Rfd8 {[%clk 0:01:22.2]} 22. Be3 {[%clk 0:00:14.4]}
22... Nxf5 {[%clk 0:01:11.5]} 23. Qe2 {[%clk 0:00:12]} 23... Nxg3 {[%clk
0:00:51.4]} 24. Kxg3 {[%clk 0:00:12.4]} 24... Qe4 {[%clk 0:00:51]} 25. Rae1
{[%clk 0:00:09.2]} 25... Rac8 {[%clk 0:00:50.6]} 26. Qf3 {[%clk 0:00:04.3]}
26... Qxf3+ {[%clk 0:00:49.7]} 27. Rxf3 {[%clk 0:00:04.7]} 27... Rxc4 {[%clk
0:00:50]} 28. Re2 {[%clk 0:00:03.4]} 28... Rxa4 {[%clk 0:00:46.6]} 29. Rd2
{[%clk 0:00:01.5]} 29... Rxd2 {[%clk 0:00:46.1]} 30. Bxd2 {[%clk 0:00:01.7]}
30... Bc5 {[%clk 0:00:45.1]} 31. Rc3 {[%clk 0:00:01.3]} 31... Re4 {[%clk
0:00:41.5]} 0-1

[Event "*** Titled Tuesday Blitz"]
[Site "Chess.com"]
[Date "2020.05.26"]
[Round "7"]
[White "sergeikim"]
[Black "ChessQueen"]
[Result "0-1"]
[WhiteElo "2407"]
[BlackElo "2621"]
[TimeControl "180+1"]
[EndTime "11:20:33 PDT"]
[Termination "ChessQueen won by resignation"]

1. d4 {[%clk 0:03:00.9]} 1... Nf6 {[%clk 0:02:59.8]} 2. c4 {[%clk 0:03:00.6]}
2... e6 {[%clk 0:02:59.8]} 3. Nc3 {[%clk 0:03:00.6]} 3... Bb4 {[%clk 0:02:59.5]}
4. Qc2 {[%clk 0:03:00.5]} 4... d6 {[%clk 0:02:59.2]} 5. a3 {[%clk 0:03:00.3]}
5... Bxc3+ {[%clk 0:02:58.6]} 6. Qxc3 {[%clk 0:03:01.2]} 6... Nbd7 {[%clk
0:02:51.9]} 7. Nf3 {[%clk 0:03:01]} 7... O-O {[%clk 0:02:51.2]} 8. g3 {[%clk
0:03:00.5]} 8... Re8 {[%clk 0:02:48.6]} 9. Bg2 {[%clk 0:02:59.4]} 9... e5 {[%clk
0:02:48.8]} 10. d5 {[%clk 0:02:58.9]} 10... a5 {[%clk 0:02:47.5]} 11. b3 {[%clk
0:02:57.7]} 11... Ne4 {[%clk 0:02:38.9]} 12. Qc2 {[%clk 0:02:56.8]} 12... f5
{[%clk 0:02:39.1]} 13. O-O {[%clk 0:02:51.7]} 13... Ndf6 {[%clk 0:02:36.9]} 14.
Ng5 {[%clk 0:02:43.6]} 14... Nxg5 {[%clk 0:02:33.8]} 15. Bxg5 {[%clk 0:02:42.1]}
15... h6 {[%clk 0:02:34.4]} 16. Bc1 {[%clk 0:02:35.9]} 16... Bd7 {[%clk
0:02:24.2]} 17. Bb2 {[%clk 0:02:23.1]} 17... Qe7 {[%clk 0:02:21.1]} 18. b4
{[%clk 0:02:14.8]} 18... b6 {[%clk 0:02:14.7]} 19. c5 {[%clk 0:01:44.4]} 19...
f4 {[%clk 0:01:47.8]} 20. cxb6 {[%clk 0:01:23.8]} 20... cxb6 {[%clk 0:01:47.2]}
21. Rac1 {[%clk 0:01:22.4]} 21... fxg3 {[%clk 0:01:39.4]} 22. hxg3 {[%clk
0:01:21.3]} 22... axb4 {[%clk 0:01:38.1]} 23. axb4 {[%clk 0:01:20.2]} 23... Ra2
{[%clk 0:01:37.1]} 24. Ra1 {[%clk 0:01:15.1]} 24... Rxa1 {[%clk 0:01:29.4]} 25.
Rxa1 {[%clk 0:01:13.7]} 25... Bb5 {[%clk 0:01:29.2]} 26. e4 {[%clk 0:01:06]}
26... Qd7 {[%clk 0:01:24.9]} 27. Rc1 {[%clk 0:01:03.9]} 27... Ra8 {[%clk
0:01:21]} 28. Qc7 {[%clk 0:01:00.2]} 28... Ra2 {[%clk 0:01:11.2]} 29. Qb8+
{[%clk 0:00:40]} 29... Kh7 {[%clk 0:01:06.9]} 30. Bc3 {[%clk 0:00:34.7]} 30...
Ng4 {[%clk 0:00:58]} 31. Be1 {[%clk 0:00:33.7]} 31... Qa7 {[%clk 0:00:42]} 32.
Qxd6 {[%clk 0:00:28.7]} 32... Ra1 {[%clk 0:00:37.7]} 33. Rxa1 {[%clk 0:00:18.3]}
33... Qxa1 {[%clk 0:00:36.7]} 34. Qxb6 {[%clk 0:00:16.9]} 34... Qxe1+ {[%clk
0:00:36.2]} 0-1

[Event "*** Titled Tuesday Blitz"]
[Site "Chess.com"]
[Date "2020.05.26"]
[Round "7"]
[White "OparinGrigoriy"]
[Black "vanea_03"]
[Result "1-0"]
[WhiteElo "2896"]
[BlackElo "2683"]
[TimeControl "180+1"]
[EndTime "11:20:34 PDT"]
[Termination "OparinGrigoriy won by resignation"]

1. e4 {[%clk 0:03:00.9]} 1... e5 {[%clk 0:03:00.2]} 2. Nf3 {[%clk 0:03:01.3]}
2... Nc6 {[%clk 0:03:00.2]} 3. Bb5 {[%clk 0:03:01.5]} 3... a6 {[%clk 0:03:00.3]}
4. Ba4 {[%clk 0:03:01.6]} 4... Nf6 {[%clk 0:03:00.5]} 5. d3 {[%clk 0:03:02.1]}
5... b5 {[%clk 0:02:58.6]} 6. Bb3 {[%clk 0:03:02.6]} 6... Bc5 {[%clk 0:02:59.2]}
7. Nc3 {[%clk 0:03:01.8]} 7... d6 {[%clk 0:02:45.5]} 8. Nd5 {[%clk 0:03:02.1]}
8... h6 {[%clk 0:02:41.8]} 9. c3 {[%clk 0:03:02.4]} 9... Rb8 {[%clk 0:02:38.3]}
10. h3 {[%clk 0:02:59.2]} 10... Nxd5 {[%clk 0:02:31.5]} 11. Bxd5 {[%clk
0:02:57.4]} 11... Ne7 {[%clk 0:02:32.1]} 12. Bb3 {[%clk 0:02:57.8]} 12... Bb6
{[%clk 0:02:28.2]} 13. O-O {[%clk 0:02:57.2]} 13... O-O {[%clk 0:02:23.7]} 14.
d4 {[%clk 0:02:57.4]} 14... Ng6 {[%clk 0:02:22]} 15. Be3 {[%clk 0:02:56]} 15...
Qf6 {[%clk 0:02:20.6]} 16. dxe5 {[%clk 0:02:49.1]} 16... dxe5 {[%clk 0:02:15]}
17. Qe2 {[%clk 0:02:41.8]} 17... Nf4 {[%clk 0:02:07.8]} 18. Bxf4 {[%clk
0:02:41.5]} 18... Qxf4 {[%clk 0:02:08.7]} 19. Rad1 {[%clk 0:02:41.1]} 19... a5
{[%clk 0:02:01.2]} 20. g3 {[%clk 0:02:36]} 20... Qf6 {[%clk 0:02:00]} 21. Kg2
{[%clk 0:02:35.6]} 21... a4 {[%clk 0:01:58.9]} 22. Bc2 {[%clk 0:02:35]} 22...
Be6 {[%clk 0:01:56.1]} 23. b3 {[%clk 0:02:32.8]} 23... a3 {[%clk 0:01:47.8]} 24.
Nh4 {[%clk 0:02:27.7]} 24... Rfd8 {[%clk 0:01:38.2]} 25. Nf5 {[%clk 0:02:24.5]}
25... c6 {[%clk 0:01:28]} 26. Qf3 {[%clk 0:02:22.4]} 26... Kh7 {[%clk
0:01:25.6]} 27. Rxd8 {[%clk 0:02:14.3]} 27... Rxd8 {[%clk 0:01:25.3]} 28. Rd1
{[%clk 0:02:15.2]} 28... Rxd1 {[%clk 0:01:21.1]} 29. Qxd1 {[%clk 0:02:16.1]}
29... g6 {[%clk 0:01:19.7]} 30. Ne3 {[%clk 0:02:15.5]} 30... Qe7 {[%clk
0:01:08]} 31. Qd2 {[%clk 0:02:12.8]} 31... Kg7 {[%clk 0:01:06.5]} 32. h4 {[%clk
0:02:12.2]} 32... h5 {[%clk 0:01:06]} 33. Bd1 {[%clk 0:02:06.4]} 33... Bc7
{[%clk 0:00:52.4]} 34. Be2 {[%clk 0:02:02.5]} 34... Bd6 {[%clk 0:00:50.7]} 35.
Nc2 {[%clk 0:01:57.6]} 35... Qc7 {[%clk 0:00:45.3]} 36. c4 {[%clk 0:01:50.6]}
36... bxc4 {[%clk 0:00:40]} 37. Bxc4 {[%clk 0:01:51.5]} 37... Bxc4 {[%clk
0:00:40.3]} 38. bxc4 {[%clk 0:01:52.4]} 38... Bc5 {[%clk 0:00:41]} 39. Na1
{[%clk 0:01:51.5]} 39... Bd4 {[%clk 0:00:33.7]} 40. Nb3 {[%clk 0:01:35.6]} 40...
c5 {[%clk 0:00:34]} 41. f4 {[%clk 0:01:32.4]} 41... Qc6 {[%clk 0:00:25.2]} 42.
Qd3 {[%clk 0:01:28.9]} 42... f5 {[%clk 0:00:23.2]} 43. Kf3 {[%clk 0:01:27.5]}
43... Kf7 {[%clk 0:00:14.5]} 44. fxe5 {[%clk 0:01:26.3]} 44... Bxe5 {[%clk
0:00:15.3]} 45. Qd5+ {[%clk 0:01:25.1]} 45... Qxd5 {[%clk 0:00:10.7]} 46. exd5
{[%clk 0:01:26]} 46... Bd6 {[%clk 0:00:10.7]} 47. Nd2 {[%clk 0:01:22.2]} 47...
Kf6 {[%clk 0:00:10.4]} 48. Nb1 {[%clk 0:01:22.2]} 48... f4 {[%clk 0:00:06.5]}
49. gxf4 {[%clk 0:01:19.8]} 49... Kf5 {[%clk 0:00:07.1]} 50. Nxa3 {[%clk
0:01:18.7]} 50... Bxf4 {[%clk 0:00:07.5]} 51. Nb5 {[%clk 0:01:18.7]} 1-0

[Event "*** Titled Tuesday Blitz"]
[Site "Chess.com"]
[Date "2020.05.26"]
[Round "7"]
[White "Malysch"]
[Black "lupta_robin"]
[Result "1-0"]
[WhiteElo "2474"]
[BlackElo "2609"]
[TimeControl "180+1"]
[EndTime "11:20:34 PDT"]
[Termination "Malysch won by checkmate"]

1. e4 {[%clk 0:03:00.9]} 1... c5 {[%clk 0:02:59.6]} 2. Nf3 {[%clk 0:03:00.5]}
2... d6 {[%clk 0:03:00.2]} 3. d4 {[%clk 0:03:00.4]} 3... cxd4 {[%clk 0:03:01.1]}
4. Nxd4 {[%clk 0:03:00.6]} 4... Nf6 {[%clk 0:03:01.7]} 5. Nc3 {[%clk 0:03:00.4]}
5... g6 {[%clk 0:03:02.4]} 6. Be3 {[%clk 0:02:59.9]} 6... Bg7 {[%clk 0:03:02.6]}
7. f3 {[%clk 0:02:59.9]} 7... O-O {[%clk 0:03:03.1]} 8. Qd2 {[%clk 0:02:52.1]}
8... Nc6 {[%clk 0:03:03.5]} 9. g4 {[%clk 0:02:51.8]} 9... Be6 {[%clk 0:03:01.2]}
10. Nxe6 {[%clk 0:02:50.2]} 10... fxe6 {[%clk 0:03:01.7]} 11. O-O-O {[%clk
0:02:49.8]} 11... Ne5 {[%clk 0:02:55.5]} 12. Be2 {[%clk 0:02:47.9]} 12... Qc8
{[%clk 0:02:55.9]} 13. Kb1 {[%clk 0:01:51.1]} 13... Nfd7 {[%clk 0:02:49]} 14.
Nb5 {[%clk 0:01:38.7]} 14... Nc4 {[%clk 0:02:37]} 15. Bxc4 {[%clk 0:01:35.6]}
15... Qxc4 {[%clk 0:02:37.9]} 16. Nd4 {[%clk 0:01:34.9]} 16... Nc5 {[%clk
0:02:17]} 17. h4 {[%clk 0:01:33.8]} 17... Rac8 {[%clk 0:01:25]} 18. h5 {[%clk
0:01:32.2]} 18... Na4 {[%clk 0:01:00.8]} 19. hxg6 {[%clk 0:01:19]} 19... hxg6
{[%clk 0:01:01.7]} 20. Bh6 {[%clk 0:00:47.6]} 20... b5 {[%clk 0:00:14.6]} 21.
Bxg7 {[%clk 0:00:35.8]} 21... Kxg7 {[%clk 0:00:15.5]} 22. Qg5 {[%clk 0:00:15]}
22... Kf7 {[%clk 0:00:10.2]} 23. Rh7+ {[%clk 0:00:13.4]} 23... Ke8 {[%clk
0:00:10.2]} 24. Qxe7# {[%clk 0:00:13.4]} 1-0

[Event "*** Titled Tuesday Blitz"]
[Site "Chess.com"]
[Date "2020.05.26"]
[Round "7"]
[White "Vitor-Moraes"]
[Black "agrigo3"]
[Result "0-1"]
[WhiteElo "1972"]
[BlackElo "2265"]
[TimeControl "180+1"]
[EndTime "11:20:34 PDT"]
[Termination "agrigo3 won on time"]

1. e4 {[%clk 0:03:00.9]} 1... g6 {[%clk 0:03:00]} 2. f4 {[%clk 0:02:59.8]} 2...
Bg7 {[%clk 0:03:00.1]} 3. Nf3 {[%clk 0:03:00.2]} 3... d6 {[%clk 0:02:57.6]} 4.
d4 {[%clk 0:02:59.1]} 4... Nc6 {[%clk 0:02:54.3]} 5. c3 {[%clk 0:02:58.1]} 5...
e5 {[%clk 0:02:53.9]} 6. d5 {[%clk 0:02:54.7]} 6... Nce7 {[%clk 0:02:52.5]} 7.
fxe5 {[%clk 0:02:50.4]} 7... dxe5 {[%clk 0:02:51.6]} 8. Bb5+ {[%clk 0:02:48.2]}
8... c6 {[%clk 0:02:49.8]} 9. Ba4 {[%clk 0:02:33.4]} 9... b5 {[%clk 0:02:18.3]}
10. Bb3 {[%clk 0:02:29.3]} 10... cxd5 {[%clk 0:02:17.6]} 11. exd5 {[%clk
0:02:27.4]} 11... Nf5 {[%clk 0:02:12.3]} 12. O-O {[%clk 0:02:17.7]} 12... Nge7
{[%clk 0:02:05.3]} 13. Bg5 {[%clk 0:01:57.3]} 13... h6 {[%clk 0:01:54.9]} 14.
Bxe7 {[%clk 0:01:54.7]} 14... Qxe7 {[%clk 0:01:54.4]} 15. Qe2 {[%clk 0:01:47.9]}
15... Nd6 {[%clk 0:01:42.8]} 16. Nbd2 {[%clk 0:01:44.5]} 16... O-O {[%clk
0:01:38]} 17. Ne4 {[%clk 0:01:37.1]} 17... Rb8 {[%clk 0:01:29.9]} 18. Rae1
{[%clk 0:01:14.7]} 18... Re8 {[%clk 0:01:25.7]} 19. h3 {[%clk 0:00:59.7]} 19...
a5 {[%clk 0:01:05.3]} 20. a3 {[%clk 0:00:58]} 20... Bd7 {[%clk 0:00:58.6]} 21.
Nc5 {[%clk 0:00:55.7]} 21... Bf5 {[%clk 0:00:50.7]} 22. Nd4 {[%clk 0:00:40.5]}
22... Qa7 {[%clk 0:00:43]} 23. Nxf5 {[%clk 0:00:02.6]} 23... Qxc5+ {[%clk
0:00:38.1]} 24. Kh1 {[%clk 0:00:01.6]} 24... Nxf5 {[%clk 0:00:28.1]} 0-1

[Event "*** Titled Tuesday Blitz"]
[Site "Chess.com"]
[Date "2020.05.26"]
[Round "7"]
[White "VishnuPrasanna"]
[Black "ShahMatKanal"]
[Result "1-0"]
[WhiteElo "2655"]
[BlackElo "2470"]
[TimeControl "180+1"]
[EndTime "11:20:38 PDT"]
[Termination "VishnuPrasanna won by checkmate"]

1. e4 {[%clk 0:03:00.9]} 1... c6 {[%clk 0:02:55.7]} 2. Nf3 {[%clk 0:03:01.2]}
2... d5 {[%clk 0:02:54.8]} 3. d3 {[%clk 0:03:01.6]} 3... Bg4 {[%clk 0:02:43.6]}
4. h3 {[%clk 0:02:59.5]} 4... Bxf3 {[%clk 0:02:42.6]} 5. Qxf3 {[%clk 0:02:58.8]}
5... e6 {[%clk 0:02:32.8]} 6. g3 {[%clk 0:02:57.2]} 6... Nf6 {[%clk 0:02:31]} 7.
Bg2 {[%clk 0:02:57]} 7... Be7 {[%clk 0:02:24.7]} 8. O-O {[%clk 0:02:57.4]} 8...
O-O {[%clk 0:02:24.9]} 9. Nd2 {[%clk 0:02:52.5]} 9... Nbd7 {[%clk 0:02:21]} 10.
Qe2 {[%clk 0:02:51.3]} 10... Qb6 {[%clk 0:02:11.9]} 11. Re1 {[%clk 0:02:44.6]}
11... a5 {[%clk 0:02:05]} 12. e5 {[%clk 0:02:43.3]} 12... Ne8 {[%clk 0:02:01.4]}
13. Nf3 {[%clk 0:02:43.7]} 13... a4 {[%clk 0:01:57.4]} 14. a3 {[%clk 0:02:42.8]}
14... Qa6 {[%clk 0:01:53.2]} 15. h4 {[%clk 0:02:39.7]} 15... b5 {[%clk
0:01:48.2]} 16. Ng5 {[%clk 0:02:37]} 16... h6 {[%clk 0:01:44.8]} 17. Nh3 {[%clk
0:02:36.1]} 17... b4 {[%clk 0:01:40.3]} 18. axb4 {[%clk 0:02:33.6]} 18... Bxb4
{[%clk 0:01:39]} 19. c3 {[%clk 0:02:30.8]} 19... Bc5 {[%clk 0:01:37.7]} 20. Bf1
{[%clk 0:02:28]} 20... Nc7 {[%clk 0:01:27.9]} 21. Qg4 {[%clk 0:02:26.8]} 21...
Kh7 {[%clk 0:01:20.8]} 22. d4 {[%clk 0:02:24.5]} 22... f5 {[%clk 0:01:02.2]} 23.
Qd1 {[%clk 0:01:48.3]} 23... Qb7 {[%clk 0:00:44.9]} 24. dxc5 {[%clk 0:01:47.5]}
24... Nxc5 {[%clk 0:00:45]} 25. Ng5+ {[%clk 0:01:18.3]} 25... hxg5 {[%clk
0:00:22.4]} 26. Qh5+ {[%clk 0:01:17.5]} 26... Kg8 {[%clk 0:00:22.6]} 27. hxg5
{[%clk 0:01:18]} 27... g6 {[%clk 0:00:07.7]} 28. Qxg6+ {[%clk 0:01:17.3]} 28...
Kh8 {[%clk 0:00:07.7]} 29. Qh5+ {[%clk 0:01:08.6]} 29... Kg8 {[%clk 0:00:07.8]}
30. Qg6+ {[%clk 0:01:06.2]} 30... Kh8 {[%clk 0:00:07.7]} 31. Kg2 {[%clk
0:01:05.7]} 31... Ne8 {[%clk 0:00:06.4]} 32. Be3 {[%clk 0:00:57.7]} 32... Nb3
{[%clk 0:00:04.8]} 33. Ba6 {[%clk 0:00:52.2]} 33... Rxa6 {[%clk 0:00:03.9]} 34.
Rh1+ {[%clk 0:00:51.1]} 34... Qh7 {[%clk 0:00:02.1]} 35. Rxh7# {[%clk
0:00:50.4]} 1-0

[Event "*** Titled Tuesday Blitz"]
[Site "Chess.com"]
[Date "2020.05.26"]
[Round "7"]
[White "PlayChessSimple"]
[Black "Zarikovs1999"]
[Result "1-0"]
[WhiteElo "2504"]
[BlackElo "2350"]
[TimeControl "180+1"]
[EndTime "11:20:40 PDT"]
[Termination "PlayChessSimple won by resignation"]

1. e4 {[%clk 0:03:00.9]} 1... c5 {[%clk 0:02:56.1]} 2. Nf3 {[%clk 0:02:59.9]}
2... d6 {[%clk 0:02:43.4]} 3. c3 {[%clk 0:02:59.5]} 3... Nf6 {[%clk 0:02:42.8]}
4. h3 {[%clk 0:02:59.3]} 4... g6 {[%clk 0:02:43]} 5. Bd3 {[%clk 0:02:59.9]} 5...
Bg7 {[%clk 0:02:42.7]} 6. Bc2 {[%clk 0:03:00.5]} 6... O-O {[%clk 0:02:43.5]} 7.
d4 {[%clk 0:03:01]} 7... cxd4 {[%clk 0:02:43.5]} 8. cxd4 {[%clk 0:03:01.2]} 8...
Nc6 {[%clk 0:02:44.4]} 9. O-O {[%clk 0:03:01.3]} 9... e5 {[%clk 0:02:44.3]} 10.
d5 {[%clk 0:03:00.9]} 10... Nb4 {[%clk 0:02:43.8]} 11. Bb3 {[%clk 0:03:01.2]}
11... a5 {[%clk 0:02:43.9]} 12. Nc3 {[%clk 0:02:58.9]} 12... Bd7 {[%clk
0:02:25.6]} 13. a3 {[%clk 0:02:55]} 13... Na6 {[%clk 0:02:24.2]} 14. Be3 {[%clk
0:02:55.6]} 14... b6 {[%clk 0:02:22.2]} 15. Bc4 {[%clk 0:02:51.9]} 15... Nc5
{[%clk 0:02:21.7]} 16. Nd2 {[%clk 0:02:49.2]} 16... Nh5 {[%clk 0:02:09.5]} 17.
b4 {[%clk 0:02:48.2]} 17... Na6 {[%clk 0:01:59.3]} 18. Bxa6 {[%clk 0:02:32.2]}
18... Rxa6 {[%clk 0:01:57.7]} 19. b5 {[%clk 0:02:32.8]} 19... Ra8 {[%clk
0:01:52.5]} 20. Nc4 {[%clk 0:02:33.3]} 20... Rc8 {[%clk 0:01:45.5]} 21. Qe2
{[%clk 0:01:56.7]} 21... Qc7 {[%clk 0:01:32.4]} 22. Nxb6 {[%clk 0:01:56.1]}
22... Qxc3 {[%clk 0:01:27.1]} 23. Nxd7 {[%clk 0:01:47.5]} 23... Rfd8 {[%clk
0:01:17.2]} 24. Nb6 {[%clk 0:01:47.1]} 24... Rb8 {[%clk 0:01:17.5]} 25. Rfc1
{[%clk 0:01:42.6]} 25... Qb3 {[%clk 0:01:16.1]} 26. Rcb1 {[%clk 0:01:36.4]}
26... Qc3 {[%clk 0:01:08.4]} 27. Na4 {[%clk 0:01:29.9]} 27... Qc7 {[%clk
0:01:05.1]} 28. b6 {[%clk 0:01:24.7]} 28... Qb7 {[%clk 0:01:05.2]} 29. Rc1
{[%clk 0:01:20.3]} 29... Rd7 {[%clk 0:00:57.3]} 30. Qb5 {[%clk 0:01:14]} 30...
Nf4 {[%clk 0:00:54.8]} 31. Rc6 {[%clk 0:01:09.8]} 31... Rbd8 {[%clk 0:00:28.7]}
32. Rac1 {[%clk 0:01:07.1]} 32... Qb8 {[%clk 0:00:27.8]} 33. Rc7 {[%clk
0:00:57.1]} 33... Rxc7 {[%clk 0:00:27.7]} 34. bxc7 {[%clk 0:00:56.4]} 34... Qxb5
{[%clk 0:00:27.4]} 35. cxd8=Q+ {[%clk 0:00:55.3]} 35... Bf8 {[%clk 0:00:28.3]}
36. Bxf4 {[%clk 0:00:52.5]} 36... exf4 {[%clk 0:00:22.3]} 37. Rc8 {[%clk
0:00:49]} 37... Kg7 {[%clk 0:00:16.3]} 38. Qxf8+ {[%clk 0:00:47.2]} 38... Kf6
{[%clk 0:00:16.3]} 39. Qxd6+ {[%clk 0:00:47.2]} 39... Kg5 {[%clk 0:00:15.9]} 40.
Qe5+ {[%clk 0:00:44.8]} 1-0

[Event "*** Titled Tuesday Blitz"]
[Site "Chess.com"]
[Date "2020.05.26"]
[Round "7"]
[White "ArnieChipmunk"]
[Black "GMKrikor"]
[Result "1-0"]
[WhiteElo "2289"]
[BlackElo "2683"]
[TimeControl "180+1"]
[EndTime "11:20:41 PDT"]
[Termination "ArnieChipmunk won by resignation"]

1. e4 {[%clk 0:03:00.8]} 1... c5 {[%clk 0:02:59.1]} 2. Nf3 {[%clk 0:03:00.8]}
2... e6 {[%clk 0:02:57.8]} 3. d4 {[%clk 0:03:01.1]} 3... cxd4 {[%clk 0:02:58.7]}
4. Nxd4 {[%clk 0:03:01.5]} 4... Nc6 {[%clk 0:02:58]} 5. Nc3 {[%clk 0:03:01.7]}
5... a6 {[%clk 0:02:52.5]} 6. g3 {[%clk 0:03:01.6]} 6... d6 {[%clk 0:02:49.3]}
7. Bg2 {[%clk 0:03:01.9]} 7... Bd7 {[%clk 0:02:49]} 8. O-O {[%clk 0:03:02.4]}
8... Nf6 {[%clk 0:02:43.4]} 9. Be3 {[%clk 0:03:02.5]} 9... Be7 {[%clk
0:02:41.3]} 10. a4 {[%clk 0:03:01.2]} 10... O-O {[%clk 0:02:40.1]} 11. f4 {[%clk
0:03:01.5]} 11... Nxd4 {[%clk 0:02:16.5]} 12. Bxd4 {[%clk 0:03:01.4]} 12... Bc6
{[%clk 0:02:16.3]} 13. g4 {[%clk 0:03:00.4]} 13... e5 {[%clk 0:01:58.8]} 14. Be3
{[%clk 0:02:38.3]} 14... exf4 {[%clk 0:01:57.1]} 15. Bxf4 {[%clk 0:02:38.4]}
15... Qb6+ {[%clk 0:01:57.2]} 16. Kh1 {[%clk 0:02:37.1]} 16... Qxb2 {[%clk
0:01:57.1]} 17. Qd3 {[%clk 0:01:56.4]} 17... Nxg4 {[%clk 0:01:31]} 18. Rab1
{[%clk 0:01:49.5]} 18... Qa3 {[%clk 0:01:29.4]} 19. Nd5 {[%clk 0:01:49.4]} 19...
Qxa4 {[%clk 0:00:55.5]} 20. Nxe7+ {[%clk 0:01:46.8]} 20... Kh8 {[%clk
0:00:55.9]} 21. Nxc6 {[%clk 0:01:37.8]} 21... bxc6 {[%clk 0:00:40.3]} 22. Qg3
{[%clk 0:01:18.2]} 22... Nf6 {[%clk 0:00:27.1]} 23. Bxd6 {[%clk 0:01:14.1]}
23... Nxe4 {[%clk 0:00:27.3]} 24. Qf4 {[%clk 0:01:08]} 24... Rfe8 {[%clk
0:00:26.7]} 25. Rb4 {[%clk 0:01:02.1]} 25... Qxc2 {[%clk 0:00:17.1]} 26. Rxe4
{[%clk 0:00:57.8]} 26... f6 {[%clk 0:00:12.5]} 27. Rfe1 {[%clk 0:00:53.2]} 27...
Red8 {[%clk 0:00:11.2]} 28. Bc7 {[%clk 0:00:42.5]} 28... Rdc8 {[%clk 0:00:08.6]}
29. Qf5 {[%clk 0:00:39.1]} 29... Qa2 {[%clk 0:00:03.1]} 30. Qxc8+ {[%clk
0:00:35.2]} 1-0

[Event "*** Titled Tuesday Blitz"]
[Site "Chess.com"]
[Date "2020.05.26"]
[Round "7"]
[White "Alopekos"]
[Black "NormWeinstein"]
[Result "1/2-1/2"]
[WhiteElo "2509"]
[BlackElo "2369"]
[TimeControl "180+1"]
[EndTime "11:20:44 PDT"]
[Termination "Game drawn by repetition"]

1. e4 {[%clk 0:03:00.9]} 1... c5 {[%clk 0:02:56.2]} 2. Nc3 {[%clk 0:03:00.5]}
2... e6 {[%clk 0:02:56]} 3. Nge2 {[%clk 0:02:59.7]} 3... Nc6 {[%clk 0:02:55.3]}
4. d4 {[%clk 0:03:00.3]} 4... cxd4 {[%clk 0:02:55.3]} 5. Nxd4 {[%clk 0:03:01.2]}
5... Bb4 {[%clk 0:02:55.2]} 6. Nxc6 {[%clk 0:03:00.3]} 6... bxc6 {[%clk
0:02:54.6]} 7. Qd4 {[%clk 0:03:00.1]} 7... Bf8 {[%clk 0:02:55]} 8. e5 {[%clk
0:02:19.5]} 8... Ne7 {[%clk 0:02:54.2]} 9. Bd3 {[%clk 0:02:11.3]} 9... Qb6
{[%clk 0:02:50.9]} 10. Qe4 {[%clk 0:02:06.6]} 10... Ba6 {[%clk 0:02:43.2]} 11.
Be3 {[%clk 0:00:55.1]} 11... Bxd3 {[%clk 0:02:15.4]} 12. Qxd3 {[%clk 0:00:56]}
12... Qa5 {[%clk 0:01:55]} 13. O-O-O {[%clk 0:00:51.5]} 13... Nd5 {[%clk
0:01:34.7]} 14. Bd2 {[%clk 0:00:42.6]} 14... Bb4 {[%clk 0:01:26.2]} 15. Nxd5
{[%clk 0:00:24.4]} 15... Bxd2+ {[%clk 0:01:06.7]} 16. Qxd2 {[%clk 0:00:23.5]}
16... Qxd2+ {[%clk 0:01:06.6]} 17. Kxd2 {[%clk 0:00:21.6]} 17... cxd5 {[%clk
0:01:07.2]} 18. c4 {[%clk 0:00:17]} 18... dxc4 {[%clk 0:01:01.3]} 19. Kc3 {[%clk
0:00:17.2]} 19... Ke7 {[%clk 0:00:48.7]} 20. Rd4 {[%clk 0:00:16.3]} 20... Rhc8
{[%clk 0:00:48.3]} 21. Rhd1 {[%clk 0:00:10.1]} 21... Rc7 {[%clk 0:00:47.9]} 22.
Rxc4 {[%clk 0:00:10.6]} 22... Rxc4+ {[%clk 0:00:45.8]} 23. Kxc4 {[%clk
0:00:11.5]} 23... Rc8+ {[%clk 0:00:45.2]} 24. Kb3 {[%clk 0:00:12.1]} 24... Rc5
{[%clk 0:00:35.4]} 25. f4 {[%clk 0:00:12]} 25... g5 {[%clk 0:00:30.7]} 26. g3
{[%clk 0:00:10.9]} 26... gxf4 {[%clk 0:00:22.9]} 27. gxf4 {[%clk 0:00:11.8]}
27... Rb5+ {[%clk 0:00:22.8]} 28. Kc3 {[%clk 0:00:10.7]} 28... Rc5+ {[%clk
0:00:22.6]} 29. Kb3 {[%clk 0:00:09.9]} 29... Rb5+ {[%clk 0:00:22.6]} 30. Kc3
{[%clk 0:00:06.5]} 30... Rc5+ {[%clk 0:00:22.6]} 31. Kb3 {[%clk 0:00:04]}
1/2-1/2